[Event "36th German Seniors-ch-65 2024"]
[Site "Bad Wildungen"]
[Date "2024.08.25"]
[Round "2.14"]
[White "Schaefer, Martin"]
[Black "Namyslo, Holger"]
[Result "0-1"]
[ECO "D20"]
[WhiteElo "1982"]
[BlackElo "2140"]
[Annotator "RC"]
[PlyCount "130"]
[EventDate "2024.08.22"]
[EventType "swiss"]
[EventCountry "GER"]
[SourceTitle "playchess.com"]
[Source "ChessBase"]
[SourceQuality "1"]
[TimeControl "40/5400+30:1800+30"]

1. d4 {[%emt 0:00:02]} d5 {[%emt 0:00:08]} 2. c4 {[%emt 0:00:01]} dxc4 {[%emt 0:00:18]} 3. e4 {[%emt 0:00:29]} b5 {[%emt 0:00:50]} 4. a4 {[%emt 0:02:49]} c6 {[%emt 0:00:21]} 5. b3 {[%emt 0:01:22]} e5 {[%emt 0:07:09]} 6. d5 {[%emt 0:06:00]} Bb4+ {[%emt 0:01:46]} 7. Bd2 {[%emt 0:01:19]} Bxd2+ {[%emt 0:00:24]} 8. Qxd2 {[%emt 0:00:48]} cxd5 {[%emt 0:04:56]} 9. bxc4 {[%emt 0:02:39]} bxc4 {[%emt 0:02:10]} 10. Qxd5 {[%emt 0:01:43]} Qxd5 {[%emt 0:00:56]} 11. exd5 {[%emt 0:00:05]} Ba6 {[%emt 0:06:58]} 12. Nf3 {[%emt 0:06:31]} e4 {[%emt 0:03:56]} 13. Nfd2 {[%emt 0:07:09]} Nf6 {[%emt 0:01:59]} 14. Nc3 {[%emt 0:00:26]} O-O {[%emt 0:00:25]} 15. Rd1 {[%emt 0:06:00]} Nbd7 {[%emt 0:03:07]} 16. Be2 {[%emt 0:02:58]} Rfe8 {[%emt 0:04:02]} 17. Bxc4 {[%emt 0:04:59]} Bxc4 {[%emt 0:06:01]} 18. Nxc4 {[%emt 0:00:29]} Rac8 {[%emt 0:10:32]} 19. Rd4 {[%emt 0:01:21]} Nb6 {[%emt 0:07:38]} 20. Nxb6 {[%emt 0:00:42]} Rxc3 {[%emt 0:02:29]} 21. Kd2 {[%emt 0:00:04]} Rc5 {[%emt 0:02:40]} 22. Nc4 {[%emt 0:01:08]} Rxd5 {[%emt 0:06:06]} 23. Rxd5 {[%emt 0:01:26]} Nxd5 {[%emt 0:00:02]} 24. Rb1 {[%emt 0:10:53]} g6 {[%emt 0:01:40]} 25. Rb7 {[%emt 0:00:42]} Re7 {[%emt 0:00:56]} 26. Rb5 {[%emt 0:06:06]} Nf6 {[%emt 0:03:58]} 27. h3 {[%emt 0:02:10]} Rd7+ {[%emt 0:01:31]} 28. Ke2 {[%emt 0:00:33]} Nd5 {[%emt 0:02:58]} 29. Rb8+ {[%emt 0:01:23]} Kg7 {[%emt 0:00:45]} 30. g3 {[%emt 0:02:24]} Nc3+ {[%emt 0:01:15]} 31. Kf1 {[%emt 0:00:56]} Nxa4 {[%emt 0:00:29]} 32. Ne5 {[%emt 0:00:23]} Rc7 {[%emt 0:01:09]} 33. Rb4 {[%emt 0:04:20]} Nc3 {[%emt 0:00:25]} 34. Ke1 {[%emt 0:01:32]} f5 {[%emt 0:01:58]} 35. Rd4 {[%emt 0:01:18]} Kf6 {[%emt 0:01:12]} 36. Nd7+ {[%emt 0:00:17]} Ke6 {[%emt 0:01:24]} 37. Nb8 {[%emt 0:01:09]} Nd5 {[%emt 0:01:18]} 38. Ra4 {[%emt 0:01:36]} Nb6 {[%emt 0:04:47]} 39. Ra1 {[%emt 0:00:30]} g5 {[%emt 0:03:43]} 40. Na6 {[%emt 0:00:53]} Rc4 {[%emt 0:00:17]} 41. Ra5 {[%emt 0:32:20]} Rc1+ {[%emt 0:34:48]} 42. Ke2 {[%emt 0:00:25]} Rc2+ {[%emt 0:00:00]} 43. Ke1 {[%emt 0:00:00]} Nc8 {[%emt 0:00:00]} 44. Nc5+ {[%emt 0:00:00]} Kf7 {[%emt 0:00:00]} 45. Nb3 {[%emt 0:00:00]} Rb2 {[%emt 0:00:00]} 46. Nd4 {[%emt 0:00:00]} f4 {[%emt 0:00:00]} 47. gxf4 {[%emt 0:00:00]} gxf4 {[%emt 0:00:00]} 48. Rf5+ {[%emt 0:00:00]} Kg6 {[%emt 0:00:00]} 49. Rxf4 {[%emt 0:00:00]} Nd6 {[%emt 0:00:00]} 50. Kf1 {[%emt 0:00:00]} a5 {[%emt 0:00:00]} 51. Rf8 {[%emt 0:00:00]} Nc4 {[%emt 0:00:00]} 52. Ra8 {[%emt 0:00:00]} Ra2 {[%emt 0:00:00]} 53. Ra6+ {[%emt 0:00:00]} Kg5 {[%emt 0:00:00]} 54. Ne6+ {[%emt 0:01:38]} Kf5 {[%emt 0:00:00]} 55. Nc5 {[%emt 0:06:41]} Ne5 {[%emt 0:00:00]} 56. Rh6 {[%emt 0:00:55]} Nd3 {[%emt 0:00:41]} 57. Nxd3 {[%emt 0:01:10]} exd3 {[%emt 0:00:02]} 58. Ke1 {[%emt 0:00:40]} Re2+ {[%emt 0:00:31]} 59. Kd1 {[%emt 0:00:01]} Rxf2 {[%emt 0:00:06]} 60. Rxh7 {[%emt 0:00:12]} Ra2 {[%emt 0:00:59]} 61. Re7 {[%emt 0:04:01]} a4 {[%emt 0:00:55]} 62. Re3 {[%emt 0:00:57]} d2 {[%emt 0:01:29]} 63. h4 {[%emt 0:02:48]} a3 {[%emt 0:00:24]} 64. Re8 {[%emt 0:03:03]} Ra1+ {[%emt 0:00:53]} 65. Kxd2 {[%emt 0:00:09]} a2 {[%emt 0:00:00]} 0-1

[Event "36th German Seniors-ch-65 2024"]
[Site "Bad Wildungen"]
[Date "2024.08.25"]
[Round "2.15"]
[White "Barten, Ralf"]
[Black "Hassenrueck, Helmut"]
[Result "1-0"]
[ECO "E03"]
[WhiteElo "1966"]
[BlackElo "2136"]
[Annotator "RC"]
[PlyCount "70"]
[EventDate "2024.08.22"]
[EventType "swiss"]
[EventCountry "GER"]
[SourceTitle "playchess.com"]
[Source "ChessBase"]
[SourceQuality "1"]
[TimeControl "40/5400+30:1800+30"]

1. Nf3 {[%emt 0:00:04]} Nf6 {[%emt 0:00:02]} 2. c4 {[%emt 0:00:09]} e6 {[%emt 0:00:03]} 3. g3 {[%emt 0:00:17]} d5 {[%emt 0:00:07]} 4. d4 {[%emt 0:00:12]} dxc4 {[%emt 0:00:13]} 5. Qa4+ {[%emt 0:01:21]} Nbd7 {[%emt 0:00:04]} 6. Qxc4 {[%emt 0:00:11]} a6 {[%emt 0:00:13]} 7. Bg2 {[%emt 0:00:55]} b5 {[%emt 0:00:07]} 8. Qc2 {[%emt 0:01:57]} Bb7 {[%emt 0:00:16]} 9. O-O {[%emt 0:03:38]} c5 {[%emt 0:01:09]} 10. Nc3 {[%emt 0:07:01]} Rc8 {[%emt 0:01:10]} 11. Qd1 {[%emt 0:04:53]} Be7 {[%emt 0:07:09]} 12. dxc5 {[%emt 0:04:36]} Bxc5 {[%emt 0:03:15]} 13. Bf4 {[%emt 0:03:13]} Qe7 {[%emt 0:05:12]} 14. Ne5 {[%emt 0:08:57]} Bxg2 {[%emt 0:04:14]} 15. Kxg2 {[%emt 0:01:02]} Nxe5 {[%emt 0:07:38]} 16. Bxe5 {[%emt 0:00:12]} O-O {[%emt 0:00:23]} 17. e3 {[%emt 0:05:01]} Rfd8 {[%emt 0:02:33]} 18. Bxf6 {[%emt 0:06:32]} Qxf6 {[%emt 0:10:41]} 19. Qb3 {[%emt 0:01:01]} Qe7 {[%emt 0:03:51]} 20. Rfd1 {[%emt 0:01:34]} b4 {[%emt 0:04:33]} 21. Na4 {[%emt 0:05:33]} Qb7+ {[%emt 0:00:48]} 22. Kg1 {[%emt 0:00:33]} Be7 {[%emt 0:01:16]} 23. Rxd8+ {[%emt 0:02:30]} Rxd8 {[%emt 0:01:04]} 24. Rd1 {[%emt 0:00:35]} Rc8 {[%emt 0:11:13]} 25. Qd3 {[%emt 0:02:16]} g6 {[%emt 0:02:05]} 26. b3 {[%emt 0:11:09]} Bf6 {[%emt 0:02:35]} 27. Qe2 {[%emt 0:03:32]} h5 {[%emt 0:05:08]} 28. h4 {[%emt 0:00:39]} Qb5 {[%emt 0:07:43]} 29. Rd2 {[%emt 0:08:14]} Rc1+ {[%emt 0:02:32]} 30. Kg2 {[%emt 0:00:21]} Qf5 {[%emt 0:01:54]} 31. e4 {[%emt 0:01:08]} Qe5 {[%emt 0:04:32]} 32. Nb2 {[%emt 0:03:25]} Qc3 {[%emt 0:01:32]} 33. Nd3 {[%emt 0:03:13]} Bd4 {[%emt 0:01:54]} 34. Nxc1 {[%emt 0:00:36]} Bf6 {[%emt 0:10:21]} 35. Nd3 {[%emt 0:11:30]} Bd4 {[%emt 0:00:30]} 1-0

[Event "36th German Seniors-ch-65 2024"]
[Site "Bad Wildungen"]
[Date "2024.08.25"]
[Round "2.16"]
[White "Erler, Rainer"]
[Black "Zschunke, Werner"]
[Result "0-1"]
[ECO "B25"]
[WhiteElo "2122"]
[BlackElo "1966"]
[Annotator "RC"]
[PlyCount "61"]
[EventDate "2024.08.22"]
[EventType "swiss"]
[EventCountry "GER"]
[SourceTitle "playchess.com"]
[Source "ChessBase"]
[SourceQuality "1"]
[TimeControl "40/5400+30:1800+30"]

1. e4 {[%emt 0:00:03]} c5 {[%emt 0:00:05]} 2. Nc3 {[%emt 0:00:01]} Nc6 {[%emt 0:00:08]} 3. g3 {[%emt 0:00:04]} g6 {[%emt 0:00:07]} 4. Bg2 {[%emt 0:00:06]} Bg7 {[%emt 0:00:06]} 5. d3 {[%emt 0:00:05]} d6 {[%emt 0:00:28]} 6. Nh3 {[%emt 0:00:09]} Nf6 {[%emt 0:01:17]} 7. O-O {[%emt 0:00:31]} O-O {[%emt 0:00:07]} 8. f4 {[%emt 0:00:14]} Bg4 {[%emt 0:00:51]} 9. Qd2 {[%emt 0:00:02]} Nd4 {[%emt 0:02:18]} 10. Nf2 {[%emt 0:00:53]} Bf3 {[%emt 0:04:09]} 11. Nfd1 {[%emt 0:00:48]} Bxg2 {[%emt 0:00:37]} 12. Qxg2 {[%emt 0:00:03]} Nd7 {[%emt 0:02:40]} 13. Ne3 {[%emt 0:02:52]} e6 {[%emt 0:01:55]} 14. g4 {[%emt 0:03:57]} b5 {[%emt 0:07:57]} 15. Ncd1 {[%emt 0:07:08]} b4 {[%emt 0:03:37]} 16. c3 {[%emt 0:10:38]} bxc3 {[%emt 0:03:30]} 17. bxc3 {[%emt 0:00:19]} Nc6 {[%emt 0:00:37]} 18. Nc4 {[%emt 0:14:40]} Nb6 {[%emt 0:01:49]} 19. e5 {[%emt 0:02:28]} Nxc4 {[%emt 0:01:53]} 20. Qxc6 {[%emt 0:00:15]} Rc8 {[%emt 0:00:22]} 21. Qe4 {[%emt 0:05:23]} Nb6 {[%emt 0:02:30]} 22. d4 {[%emt 0:03:17]} cxd4 {[%emt 0:03:14]} 23. cxd4 {[%emt 0:00:01]} dxe5 {[%emt 0:01:44]} 24. dxe5 {[%emt 0:01:12]} Rc4 {[%emt 0:03:12]} 25. Qe3 {[%emt 0:03:23]} Nd5 {[%emt 0:01:15]} 26. Qf2 {[%emt 0:12:28]} Qc7 {[%emt 0:01:41]} 27. Nb2 {[%emt 0:21:26]} Rc2 {[%emt 0:00:39]} 28. Qd4 {[%emt 0:04:42]} Rd8 {[%emt 0:05:42]} 29. Nd3 {[%emt 0:05:09]} Nxf4 {[%emt 0:04:11]} 30. Qxf4 {[%emt 0:00:02]} Rxd3 {[%emt 0:00:11]} 31. Qe4 {[%emt 0:03:41]} 0-1

[Event "36th German Seniors-ch-65 2024"]
[Site "Bad Wildungen"]
[Date "2024.08.25"]
[Round "2.17"]
[White "Schrems, Hermann"]
[Black "Peleikis, Horst"]
[Result "1-0"]
[ECO "E09"]
[WhiteElo "2118"]
[BlackElo "1959"]
[Annotator "RC"]
[PlyCount "85"]
[EventDate "2024.08.22"]
[EventType "swiss"]
[EventCountry "GER"]
[SourceTitle "playchess.com"]
[Source "ChessBase"]
[SourceQuality "1"]
[TimeControl "40/5400+30:1800+30"]

1. d4 {[%emt 0:00:04]} Nf6 {[%emt 0:00:02]} 2. Nf3 {[%emt 0:00:09]} e6 {[%emt 0:00:21]} 3. g3 {[%emt 0:00:06]} Be7 {[%emt 0:02:09]} 4. Bg2 {[%emt 0:00:07]} d5 {[%emt 0:01:14]} 5. O-O {[%emt 0:00:08]} Nbd7 {[%emt 0:00:43]} 6. c4 {[%emt 0:00:56]} c6 {[%emt 0:00:30]} 7. Qc2 {[%emt 0:00:46]} O-O {[%emt 0:01:53]} 8. Nbd2 {[%emt 0:01:12]} Bd6 {[%emt 0:08:31]} 9. Rd1 {[%emt 0:01:37]} Qe7 {[%emt 0:03:42]} 10. e4 {[%emt 0:03:40]} Nxe4 {[%emt 0:00:49]} 11. Nxe4 {[%emt 0:00:07]} dxe4 {[%emt 0:00:04]} 12. Qxe4 {[%emt 0:00:06]} Nf6 {[%emt 0:00:49]} 13. Qh4 {[%emt 0:00:22]} h6 {[%emt 0:02:32]} 14. Bf4 {[%emt 0:04:13]} Ne8 {[%emt 0:08:59]} 15. Qxe7 {[%emt 0:00:45]} Bxe7 {[%emt 0:00:02]} 16. Rac1 {[%emt 0:00:44]} Nf6 {[%emt 0:01:25]} 17. Ne5 {[%emt 0:02:38]} Rd8 {[%emt 0:05:13]} 18. a3 {[%emt 0:02:21]} a5 {[%emt 0:02:30]} 19. Rd3 {[%emt 0:03:37]} g5 {[%emt 0:04:55]} 20. Be3 {[%emt 0:00:09]} Kg7 {[%emt 0:02:21]} 21. Rcd1 {[%emt 0:04:38]} Ra6 {[%emt 0:03:15]} 22. Bd2 {[%emt 0:02:24]} Nd7 {[%emt 0:04:57]} 23. Bc3 {[%emt 0:02:32]} f6 {[%emt 0:05:08]} 24. Nxd7 {[%emt 0:11:33]} Bxd7 {[%emt 0:04:54]} 25. Re1 {[%emt 0:01:12]} Kf7 {[%emt 0:06:00]} 26. Rde3 {[%emt 0:00:20]} Bf8 {[%emt 0:01:55]} 27. Bf1 {[%emt 0:03:18]} Raa8 {[%emt 0:02:26]} 28. c5 {[%emt 0:01:33]} Re8 {[%emt 0:01:14]} 29. Bc4 {[%emt 0:00:11]} f5 {[%emt 0:01:53]} 30. Re5 {[%emt 0:01:20]} f4 {[%emt 0:04:53]} 31. gxf4 {[%emt 0:00:16]} gxf4 {[%emt 0:00:03]} 32. Rf5+ {[%emt 0:00:10]} Ke7 {[%emt 0:05:20]} 33. Rxf4 {[%emt 0:00:08]} Bg7 {[%emt 0:00:19]} 34. Re3 {[%emt 0:02:54]} Rg8 {[%emt 0:00:53]} 35. Rg3 {[%emt 0:51:44]} Bf6 {[%emt 0:00:56]} 36. d5 {[%emt 0:00:00]} Rxg3+ {[%emt 0:01:06]} 37. hxg3 {[%emt 0:00:00]} Bxc3 {[%emt 0:00:33]} 38. d6+ {[%emt 0:00:00]} Ke8 {[%emt 0:00:45]} 39. bxc3 {[%emt 0:00:00]} Rb8 {[%emt 0:00:45]} 40. Rf6 {[%emt 0:00:00]} b6 {[%emt 0:00:31]} 41. Rxh6 {[%emt 0:00:00]} Kd8 {[%emt 0:30:25]} 42. Rh8+ {[%emt 0:00:00]} Be8 {[%emt 0:00:02]} 43. Bxe6 {[%emt 0:00:00]} 1-0

[Event "36th German Seniors-ch-65 2024"]
[Site "Bad Wildungen"]
[Date "2024.08.25"]
[Round "2.18"]
[White "Schulz, Michael"]
[Black "Domsgen, Bernd"]
[Result "1/2-1/2"]
[ECO "A45"]
[WhiteElo "2109"]
[BlackElo "1957"]
[Annotator "RC"]
[PlyCount "152"]
[EventDate "2024.08.22"]
[EventType "swiss"]
[EventCountry "GER"]
[SourceTitle "playchess.com"]
[Source "ChessBase"]
[SourceQuality "1"]
[TimeControl "40/5400+30:1800+30"]

1. d4 {[%emt 0:00:05]} Nf6 {[%emt 0:00:03]} 2. Bg5 {[%emt 0:00:12]} c5 {[%emt 0:03:27]} 3. d5 {[%emt 0:00:10]} Ne4 {[%emt 0:00:46]} 4. Bf4 {[%emt 0:02:57]} d6 {[%emt 0:01:19]} 5. f3 {[%emt 0:00:26]} Nf6 {[%emt 0:00:13]} 6. e4 {[%emt 0:00:47]} e5 {[%emt 0:01:20]} 7. dxe6 {[%emt 0:05:53]} Bxe6 {[%emt 0:00:04]} 8. Nc3 {[%emt 0:00:08]} d5 {[%emt 0:03:08]} 9. Bb5+ {[%emt 0:03:13]} Nc6 {[%emt 0:00:08]} 10. exd5 {[%emt 0:02:27]} Nxd5 {[%emt 0:00:18]} 11. Nxd5 {[%emt 0:07:48]} Qxd5 {[%emt 0:03:29]} 12. Qxd5 {[%emt 0:01:40]} Bxd5 {[%emt 0:00:02]} 13. O-O-O {[%emt 0:02:03]} O-O-O {[%emt 0:05:37]} 14. Ne2 {[%emt 0:06:28]} Be7 {[%emt 0:10:51]} 15. Nc3 {[%emt 0:03:03]} Be6 {[%emt 0:00:39]} 16. Bxc6 {[%emt 0:00:48]} bxc6 {[%emt 0:00:01]} 17. Ne4 {[%emt 0:01:56]} Rd5 {[%emt 0:01:40]} 18. b3 {[%emt 0:03:55]} Rhd8 {[%emt 0:01:12]} 19. c4 {[%emt 0:00:23]} Rxd1+ {[%emt 0:08:24]} 20. Rxd1 {[%emt 0:00:12]} Rxd1+ {[%emt 0:00:13]} 21. Kxd1 {[%emt 0:00:04]} Bf5 {[%emt 0:00:08]} 22. Bd6 {[%emt 0:02:45]} Bxe4 {[%emt 0:12:48]} 23. Bxe7 {[%emt 0:01:09]} Bd3 {[%emt 0:00:03]} 24. Bxc5 {[%emt 0:00:29]} a6 {[%emt 0:00:05]} 25. Bd4 {[%emt 0:01:40]} f6 {[%emt 0:00:43]} 26. Kd2 {[%emt 0:01:33]} Bf1 {[%emt 0:00:58]} 27. g4 {[%emt 0:01:07]} Kd7 {[%emt 0:00:43]} 28. h4 {[%emt 0:01:21]} Ke6 {[%emt 0:03:18]} 29. Ke3 {[%emt 0:00:46]} g5 {[%emt 0:43:20]} 30. b4 f5 {[%emt 0:00:00]} 31. hxg5 {[%emt 0:04:08]} fxg4 {[%emt 0:01:00]} 32. Kf4 Bd3 {[%emt 0:00:00]} 33. Kxg4 {[%emt 0:03:37]} Bf1 {[%emt 0:00:00]} 34. a3 {[%emt 0:04:05]} Bd3 {[%emt 0:00:00]} 35. c5 {[%emt 0:02:10]} Bb1 {[%emt 0:00:00]} 36. Kf4 {[%emt 0:01:37]} Bc2 {[%emt 0:00:00]} 37. Bc3 {[%emt 0:03:21]} Bb1 {[%emt 0:00:00]} 38. Kg3 {[%emt 0:03:49]} Kd5 {[%emt 0:00:00]} 39. Bf6 {[%emt 0:01:06]} Bc2 {[%emt 0:00:00]} 40. Bd8 {[%emt 0:02:15]} Bb1 {[%emt 0:00:00]} 41. Kf4 {[%emt 0:33:05]} Ke6 {[%emt 0:01:14]} 42. a4 {[%emt 0:03:25]} Bc2 {[%emt 0:00:28]} 43. a5 {[%emt 0:01:47]} Bb1 {[%emt 0:00:11]} 44. Bb6 {[%emt 0:02:32]} Bc2 {[%emt 0:00:00]} 45. Kg4 {[%emt 0:01:14]} Bf5+ {[%emt 0:00:00]} 46. Kh5 {[%emt 0:00:15]} Bc2 {[%emt 0:00:36]} 47. Kh6 {[%emt 0:00:14]} Kf7 {[%emt 0:00:04]} 48. Bc7 {[%emt 0:03:21]} Bb1 {[%emt 0:00:32]} 49. f4 {[%emt 0:00:43]} Bc2 {[%emt 0:00:07]} 50. Be5 {[%emt 0:00:32]} Bb1 {[%emt 0:00:13]} 51. Kh5 {[%emt 0:00:28]} Bf5 {[%emt 0:00:03]} 52. Bc3 {[%emt 0:01:26]} Ke6 {[%emt 0:00:11]} 53. Kh6 {[%emt 0:00:41]} Kf7 {[%emt 0:00:03]} 54. Kh5 {[%emt 0:01:21]} Ke6 {[%emt 0:00:02]} 55. Be5 {[%emt 0:00:07]} Kf7 {[%emt 0:00:27]} 56. b5 {[%emt 0:01:09]} cxb5 {[%emt 0:00:09]} 57. c6 {[%emt 0:00:05]} Ke7 {[%emt 0:01:02]} 58. c7 {[%emt 0:02:26]} Kf7 {[%emt 0:04:24]} 59. Kh4 {[%emt 0:00:14]} Ke7 {[%emt 0:00:55]} 60. Kh5 {[%emt 0:00:11]} Kf7 {[%emt 0:00:02]} 61. Kh4 {[%emt 0:00:19]} Ke6 {[%emt 0:00:30]} 62. Kh5 Kf7 {[%emt 0:34:17]} 63. Kh6 {[%emt 0:01:00]} Kg8 {[%emt 0:00:00]} 64. Bd6 {[%emt 0:00:19]} Kf7 {[%emt 0:00:00]} 65. Bb4 {[%emt 0:03:17]} Kg8 {[%emt 0:00:00]} 66. Bc3 {[%emt 0:01:04]} Kf7 {[%emt 0:00:00]} 67. c8=Q {[%emt 0:00:42]} Bxc8 {[%emt 0:00:00]} 68. Kxh7 {[%emt 0:00:07]} Bf5+ {[%emt 0:00:00]} 69. Kh6 {[%emt 0:00:12]} Bg6 {[%emt 0:00:00]} 70. Bb4 {[%emt 0:00:24]} Bf5 {[%emt 0:00:00]} 71. Kh5 {[%emt 0:00:05]} Kg7 {[%emt 0:00:00]} 72. Kh4 {[%emt 0:00:09]} Kg6 {[%emt 0:00:00]} 73. Kg3 {[%emt 0:00:15]} Be6 {[%emt 0:00:00]} 74. Kf3 {[%emt 0:00:32]} Kf5 {[%emt 0:00:00]} 75. Ke3 {[%emt 0:00:30]} Ba2 {[%emt 0:00:00]} 76. Bd2 {[%emt 0:00:30]} Bg8 {[%emt 0:00:00]} 1/2-1/2

[Event "36th German Seniors-ch-65 2024"]
[Site "Bad Wildungen"]
[Date "2024.08.25"]
[Round "2.19"]
[White "Steiger, Michael"]
[Black "Zimmermann, Rolf"]
[Result "0-1"]
[ECO "A36"]
[WhiteElo "1966"]
[BlackElo "2107"]
[Annotator "RC"]
[PlyCount "52"]
[EventDate "2024.08.22"]
[EventType "swiss"]
[EventCountry "GER"]
[SourceTitle "playchess.com"]
[Source "ChessBase"]
[SourceQuality "1"]
[TimeControl "40/5400+30:1800+30"]

1. c4 {[%emt 0:00:19]} c5 {[%emt 0:00:20]} 2. g3 {[%emt 0:00:18]} Nc6 {[%emt 0:00:59]} 3. Bg2 {[%emt 0:00:48]} e6 {[%emt 0:02:33]} 4. Nc3 {[%emt 0:02:47]} Nf6 {[%emt 0:01:12]} 5. e3 {[%emt 0:02:04]} d5 {[%emt 0:05:43]} 6. cxd5 {[%emt 0:01:44]} Nxd5 {[%emt 0:02:25]} 7. Nxd5 {[%emt 0:03:20]} exd5 {[%emt 0:00:03]} 8. d4 {[%emt 0:15:36]} cxd4 {[%emt 0:24:02]} 9. exd4 {[%emt 0:01:26]} Bb4+ {[%emt 0:00:31]} 10. Bd2 {[%emt 0:01:19]} Qe7+ {[%emt 0:07:15]} 11. Ne2 {[%emt 0:09:51]} Nxd4 {[%emt 0:10:07]} 12. Bxb4 {[%emt 0:09:28]} Qxb4+ {[%emt 0:01:22]} 13. Nc3 {[%emt 0:05:24]} Qxb2 {[%emt 0:06:42]} 14. Rc1 {[%emt 0:02:26]} Bg4 {[%emt 0:11:39]} 15. Qd2 {[%emt 0:11:31]} Qxd2+ {[%emt 0:02:25]} 16. Kxd2 {[%emt 0:00:03]} O-O {[%emt 0:07:05]} 17. Bxd5 {[%emt 0:08:00]} Bf3 {[%emt 0:01:16]} 18. Bxf3 {[%emt 0:04:13]} Nxf3+ {[%emt 0:00:02]} 19. Ke3 {[%emt 0:00:23]} Ne5 {[%emt 0:00:22]} 20. Nd5 {[%emt 0:01:22]} Nc6 {[%emt 0:00:05]} 21. Rhd1 {[%emt 0:01:04]} Rad8 {[%emt 0:00:53]} 22. Kf3 {[%emt 0:02:13]} f6 {[%emt 0:01:38]} 23. Kg2 {[%emt 0:02:18]} Kf7 {[%emt 0:01:01]} 24. Kf3 {[%emt 0:07:46]} Rd7 {[%emt 0:01:07]} 25. Ne3 {[%emt 0:03:58]} Rfd8 {[%emt 0:01:15]} 26. Re1 {[%emt 0:00:51]} Ne5+ {[%emt 0:11:28]} 0-1

[Event "36th German Seniors-ch-65 2024"]
[Site "Bad Wildungen"]
[Date "2024.08.25"]
[Round "2.20"]
[White "Rosen, Willy"]
[Black "Ehlert, Horst"]
[Result "1/2-1/2"]
[ECO "B23"]
[WhiteElo "2091"]
[BlackElo "1951"]
[Annotator "NA RC"]
[PlyCount "135"]
[EventDate "2024.08.22"]
[EventType "swiss"]
[EventCountry "GER"]
[SourceTitle "playchess.com"]
[Source "ChessBase"]
[SourceQuality "1"]
[TimeControl "40/5400+30:1800+30"]

1. e4 {[%emt 0:00:06]} c5 {[%emt 0:00:15]} 2. Nc3 {[%emt 0:00:07]} e6 {[%emt 0:00:39]} 3. f4 {[%emt 0:00:57]} d5 {[%emt 0:01:38]} 4. exd5 {[%emt 0:06:13]} exd5 {[%emt 0:01:04]} 5. Bb5+ {[%emt 0:00:09]} Nc6 {[%emt 0:02:32]} 6. Qe2+ {[%emt 0:00:10]} Be7 {[%emt 0:01:33]} 7. Nf3 {[%emt 0:03:48]} Nf6 {[%emt 0:01:55]} 8. Bxc6+ {[%emt 0:01:58]} bxc6 {[%emt 0:00:46]} 9. d3 {[%emt 0:00:13]} O-O {[%emt 0:11:28]} 10. O-O {[%emt 0:00:51]} Bg4 {[%emt 0:04:36]} 11. h3 {[%emt 0:01:11]} Bxf3 {[%emt 0:06:07]} 12. Qxf3 {[%emt 0:00:56]} Re8 {[%emt 0:04:41]} 13. Na4 {[%emt 0:09:58]} Qa5 {[%emt 0:59:46]} 14. b3 {[%emt 0:01:50]} Nd7 {[%emt 0:00:00]} 15. Qf2 {[%emt 0:05:07]} Bf6 {[%emt 0:00:00]} 16. Bd2 {[%emt 0:00:23]} Qc7 {[%emt 0:00:00]} 17. c3 {[%emt 0:08:16]} d4 {[%emt 0:00:00]} 18. Rae1 {[%emt 0:05:48]} Qd6 {[%emt 0:00:00]} 19. c4 {[%emt 0:07:36]} Qf8 {[%emt 0:00:00]} 20. Qf3 {[%emt 0:01:03]} Rxe1 {[%emt 0:00:00]} 21. Rxe1 {[%emt 0:00:18]} Qd6 {[%emt 0:00:00]} 22. Bc1 {[%emt 0:09:40]} g6 {[%emt 0:00:00]} 23. Qe4 {[%emt 0:03:00]} Rc8 {[%emt 0:00:00]} 24. Ba3 {[%emt 0:01:40]} Bg7 {[%emt 0:00:00]} 25. g3 {[%emt 0:02:38]} Bf8 {[%emt 0:00:00]} 26. Kg2 {[%emt 0:00:16]} Nf6 {[%emt 0:00:00]} 27. Qe5 {[%emt 0:02:48]} Qxe5 {[%emt 0:00:00]} 28. Rxe5 {[%emt 0:00:14]} Nd7 {[%emt 0:00:00]} 29. Re2 {[%emt 0:00:48]} f5 {[%emt 0:00:00]} 30. g4 {[%emt 0:00:37]} Kf7 {[%emt 0:00:00]} 31. Kg3 {[%emt 0:03:40]} Re8 {[%emt 0:00:12]} 32. Rxe8 {[%emt 0:00:44]} Kxe8 {[%emt 0:00:08]} 33. Bc1 {[%emt 0:04:53]} Kf7 {[%emt 0:00:41]} 34. Bd2 {[%emt 0:00:10]} Bd6 {[%emt 0:01:51]} 35. Kf3 {[%emt 0:04:13]} fxg4+ {[%emt 0:01:53]} 36. hxg4 {[%emt 0:00:12]} h5 {[%emt 0:01:09]} 37. g5 {[%emt 0:00:43]} Ke6 {[%emt 0:00:33]} 38. Ke4 {[%emt 0:04:06]} h4 {[%emt 0:02:37]} 39. Be1 {[%emt 0:00:10]} h3 {[%emt 0:00:12]} 40. Bg3 {[%emt 0:00:07]} Nb8 {[%emt 0:01:23]} 41. Nb2 {[%emt 0:31:09]} Na6 {[%emt 0:31:24]} 42. a3 {[%emt 0:00:52]} Nc7 {[%emt 0:00:00]} 43. Nd1 {[%emt 0:00:00]} Ne8 {[%emt 0:00:00]} 44. Nf2 {[%emt 0:00:00]} Ng7 {[%emt 0:00:00]} 45. Nxh3 {[%emt 0:00:00]} Bc7 {[%emt 0:00:00]} 46. Ng1 {[%emt 0:00:00]} Ba5 {[%emt 0:00:00]} 47. Bf2 {[%emt 0:00:00]} Nf5 {[%emt 0:00:00]} 48. Ne2 {[%emt 0:00:00]} Bd2 {[%emt 0:00:00]} 49. b4 {[%emt 0:00:00]} cxb4 {[%emt 0:00:00]} 50. axb4 {[%emt 0:00:00]} Bxb4 {[%emt 0:00:00]} 51. Bxd4 {[%emt 0:00:00]} a5 {[%emt 0:00:00]} 52. Be5 {[%emt 0:00:00]} Nd4 53. Bxd4 {[%emt 0:00:00]} a4 {[%emt 0:01:05]} 54. Be5 {[%emt 0:00:00]} a3 {[%emt 0:00:53]} 55. d4 {[%emt 0:00:00]} Kd7 {[%emt 0:00:51]} 56. d5 {[%emt 0:00:00]} cxd5+ {[%emt 0:01:35]} 57. cxd5 {[%emt 0:00:00]} Bd2 {[%emt 0:00:31]} 58. Nc1 Bxc1 {[%emt 0:01:26]} 59. Kd3 {[%emt 0:06:27]} a2 {[%emt 0:01:59]} 60. f5 {[%emt 0:01:06]} Bf4 {[%emt 0:01:33]} 61. Ba1 {[%emt 0:01:33]} gxf5 {[%emt 0:00:33]} 62. g6 {[%emt 0:00:30]} Ke8 {[%emt 0:00:07]} 63. Kc4 {[%emt 0:02:38]} Bd6 {[%emt 0:00:27]} 64. Kb3 {[%emt 0:05:04]} f4 {[%emt 0:00:48]} 65. Kxa2 {[%emt 0:00:14]} f3 {[%emt 0:00:29]} 66. Bd4 {[%emt 0:00:29]} Be5 {[%emt 0:00:31]} 67. Bc5 {[%emt 0:02:10]} Bd6 {[%emt 0:00:52]} 68. Bf2 {[%emt 0:04:41]} 1/2-1/2